fUSD/lending_fUSD_20240107
["ID","MTS","AMOUNT","RATE_DAILY","PERIOD"]
[310712711,1704649935846,291.53968014,0.00021,2]
[310712712,1704649940089,543.16023412,0.00021,2]
[310712713,1704649943200,6108.65209662,0.00021,2]
[310712714,1704649943222,1302.01172303,0.00021,2]
[310712715,1704649948287,14462.29101917,0.00021,2]
[310712716,1704649951418,290.42393486,0.00021,2]
[310712717,1704649958292,451.08551476,0.00021,2]
[310712718,1704649960091,543.16023412,0.00021,2]
[310712719,1704649961442,7507.34807264,0.00021,2]
[310712720,1704649966317,3898.12396181,0.00021,2]
[310712721,1704649978103,185.28475783,0.00021,2]
[310712722,1704650045777,212.67744984,0.00021,2]
[310712723,1704650049207,256.33149804,0.00021,2]
[310712724,1704650052624,4208.37690962,0.00021,2]
[310712725,1704650053583,217.7771887,0.00021,2]
[310712726,1704650057050,532.23826468,0.00021,2]
[310712727,1704650059443,1021.01296081,0.00021,2]
[310712728,1704650061441,269.63734742,0.00021,2]
[310712729,1704650061513,4845.00922246,0.00021,2]
[310712730,1704650062545,283.67135139,0.00021,2]
[310712731,1704650064573,520.23298241,0.00021,2]
[310712732,1704650068027,282.62179713,0.00021,2]
[310712733,1704650071084,527.15401793,0.00021,2]
[310712734,1704650072037,352.66747811,0.00021,2]
[310712735,1704650073019,401.16267658,0.0002037,2]
[310712736,1704650075423,1018.86745081,0.00021,2]
[310712737,1704650075606,217.7771887,0.00021,2]
[310712738,1704650075711,7410.66381965,0.00021,2]
[310712739,1704650076543,283.42704637,0.00021,2]
[310712741,1704650086044,282.12624025,0.00021,2]
[310712742,1704650091602,217.7771887,0.00021,2]
[310712743,1704650092805,283.54919888,0.00021,2]
[310712744,1704650096592,520.23298241,0.00021,2]
[310712745,1704650097722,7404.06217645,0.00021,2]
[310712746,1704650112584,520.23298241,0.00021,2]
[310712747,1704650113593,217.7771887,0.00021,2]
[310712748,1704650116555,283.67135139,0.00021,2]
[310712749,1704650117707,7407.36299805,0.00021,2]
[310712750,1704650121276,1030.96098398,0.00021,2]
[310712751,1704650130566,266.76511467,0.00021,2]
[310712752,1704650130609,445.90233337,0.00020263,2]
[310712753,1704650131609,217.7771887,0.00021,2]
[310712754,1704650136596,544.81651324,0.00021,2]
[310712755,1704650137721,2319.5980789,0.00021,2]
[310712756,1704650143280,351.91817254,0.00021,2]
[310712757,1704650147601,217.7771887,0.00021,2]
[310712758,1704650154229,155.0,0.0002049,2]
[310712759,1704650156636,6066.31265179,0.00021,2]
[310712760,1704650163034,401.63453828,0.0002037,2]
[310712761,1704650163277,1030.51455742,0.00021,2]
[310712762,1704650163528,3176.77792395,0.00021856,2]
[310712763,1704650163609,217.7771887,0.00021,2]
[310712764,1704650167130,500.0,0.00021,2]
[310712765,1704650173340,3804.61176821,0.00021,2]
[310712766,1704650181134,500.0,0.00021,2]
[310712767,1704650188674,201.13484811,0.00021,2]
[310712768,1704650200089,177.447162,0.00021978,2]
[310712769,1704650209689,1095.89797255,0.0002049,5]
[310712770,1704650218645,1274.96750604,0.00021,5]
[310712771,1704650226559,150.0,0.00021876,2]
[310712772,1704650234110,600.0,0.00021865,2]
[310712773,1704650238350,1274.96750604,0.00021,5]
[310712774,1704650254224,1269.3345036,0.00021,5]
[310712775,1704650288844,175.9,0.00022,2]
[310712776,1704650359799,324.23,0.00019853,2]
[310712777,1704650377076,350.00063694,0.00022,2]
[310712778,1704650407147,300.0,0.00021983,2]
[310712779,1704650425091,176.9,0.00021796,2]
[310712780,1704650428188,167.55,0.00021982,2]
[310712781,1704650456430,479.24871213,0.00022,3]
[310712782,1704650475635,225.22,0.00021734,2]
[310712783,1704650525518,3422.7,0.00021703,2]
[310712784,1704650530439,151.47,0.00021914,2]
[310712785,1704650530695,151.47,0.00021985,2]
[310712786,1704650569636,620.21196217,0.00021455,2]
[310712787,1704650572211,446.17403311,0.0001989,2]
[310712788,1704650573573,2917.45159608,0.00021455,2]
[310712789,1704650586318,464.51,0.0002158,2]
[310712790,1704650589275,564.43023196,0.0001989,2]
[310712791,1704650602404,1095.37788302,0.00021455,2]
[310712792,1704650606388,168.72,0.00021561,2]
[310712793,1704650616397,1204.30151103,0.00021455,2]
[310712794,1704650620515,4841.56,0.00021918,2]
[310712795,1704650641253,1607.01,0.00021554,2]
[310712796,1704650695141,318.24,0.00021543,2]
[310712797,1704650695296,520.0,0.00021543,2]
[310712798,1704650706686,500.0,0.00021543,2]
[310712799,1704650720921,150.0,0.00021554,2]
[310712800,1704650753361,743.74,0.00021553,2]
[310712801,1704650758642,200.0,0.00021553,2]
[310712802,1704650778058,405.01,0.0001965,2]
[310712803,1704650778472,405.01,0.00021914,2]
[310712804,1704650801978,23900.0,0.00021559,2]
[310712805,1704650835016,1816.31,0.00021564,2]
[310712806,1704650841620,2447.85,0.00021564,2]
[310712807,1704650847208,174.23,0.00021564,2]
[310712808,1704650851821,3184.00180731,0.00021429,2]
[310712809,1704650858390,727.41794714,0.00021,2]
[310712810,1704650867599,3184.00180731,0.00021429,2]
[310712811,1704650886455,3886.45,0.00021557,2]
[310712812,1704650887582,3184.00180731,0.00021429,2]
[310712813,1704650889588,1000.0,0.00020358,2]
[310712814,1704650890467,158.47177903,0.00021957,2]
[310712815,1704650891836,175.9,0.00022,2]
[310712819,1704650902408,160.58205286,0.00021,2]
[310712820,1704650908135,150.0,0.00022,2]
[310712821,1704650915153,280.13016503,0.00021206,2]
[310712822,1704650915301,352.555,0.00019866,2]
[310712823,1704650918879,1545.47,0.00021453,2]
[310712826,1704650933694,360.16,0.00021441,2]
[310712827,1704650934156,841.5,0.00021441,2]
[310712828,1704650948946,158.36,0.00021677,2]
[310712831,1704650952422,888.536272,0.00022,2]
[310712832,1704650955585,1000.0,0.000209,2]
[310712833,1704650956594,418.45759132,0.00022,2]
[310712834,1704650960347,152.26,0.00021643,2]
[310712835,1704650960556,152.26,0.0002171,2]
[310712836,1704650960781,152.26,0.00021776,2]
[310712837,1704650961004,152.26,0.00021842,2]
[310712838,1704650961235,152.26,0.00021909,2]
[310712839,1704650961465,152.26,0.00021975,2]
[310712840,1704650963593,2461.56085039,0.00021429,2]
[310712841,1704650965214,155.0,0.00022,2]
[310712842,1704650967609,531.37209731,0.00022,2]
[310712843,1704650967832,7410.66381965,0.00022,2]
[310712844,1704650972167,282.62179713,0.00022,2]
[310712848,1704650975230,7986.87,0.00021463,2]
[310712849,1704650978604,165.58366484,0.00022,2]
[310712850,1704650985301,155.43750853,0.00021429,2]
[310712851,1704650986407,288.65806004,0.00021429,2]
[310712852,1704650987603,531.37209731,0.00021429,2]
[310712853,1704650987920,2551.39500281,0.00021429,2]
[310712854,1704650992151,203.32009238,0.00021429,2]
[310712855,1704650996910,321.82,0.00021643,2]
[310712866,1704651001611,5148.99156293,0.00021463,2]
[310712867,1704651001634,5545.34843707,0.00021463,2]
[310712868,1704651006260,534.52400901,0.00021429,2]
[310712869,1704651011229,500.0,0.00021429,2]
[310712870,1704651013519,200.0,0.00021463,2]
[310712871,1704651022467,543.11,0.00021453,2]
[310712872,1704651029225,500.0,0.00021429,2]
[310712907,1704651031761,-1589.76308293,0.00022014,2]
[310712909,1704651031773,-450.0,0.00022014,2]
[310712912,1704651031786,-430.48891759,0.00022014,2]
[310712914,1704651031796,-500.35392576,0.00022015,2]
[310712915,1704651031806,-360.1226351,0.00022016,2]
[310712918,1704651031817,-553.13201144,0.00022016,2]
[310712920,1704651031827,-158.47177902,0.0002202,2]
[310712922,1704651031838,-152.26,0.00022041,2]
[310712924,1704651031847,-39.72729164,0.00022083,2]
[310712926,1704651031860,-118.74448738,0.00022083,2]
[310712927,1704651031869,-164.57,0.00022089,2]
[310712928,1704651031879,-27.41012127,0.00022108,2]
[310712929,1704651031928,-124.84987873,0.00022108,2]
[310712930,1704651031938,-139.66146527,0.00022146,2]
[310712931,1704651031952,-18.81031375,0.00022146,2]
[310712932,1704651031961,-152.26,0.00022174,2]
[310712933,1704651031970,-705.41846479,0.000222,2]
[310712934,1704651031980,-158.47177902,0.00022208,2]
[310712935,1704651031989,-1005.5232,0.00022224,2]
[310712936,1704651031999,-152.26,0.0002224,2]
[310712937,1704651032008,-215.93753758,0.00022249,2]
[310712938,1704651032017,-158.47177902,0.00022271,2]
[310712939,1704651032027,-152.26,0.00022307,2]
[310712940,1704651032037,-1359.85,0.00022322,2]
[310712941,1704651032047,-471.70437541,0.00022322,2]
[310712942,1704651032058,-150.0,0.00022323,2]
[310712943,1704651032068,-4225.93396765,0.00022324,2]
[310712944,1704651032079,-5931.27330429,0.00022324,2]
[310712945,1704651032091,-1553.53575242,0.00022324,2]
[310712946,1704651032103,-723.29676624,0.00022324,2]
[310712947,1704651032118,-474.04839782,0.00022324,2]
[310712948,1704651032130,-435.26,0.00022324,2]
[310712949,1704651032141,-8832.38384055,0.00022324,2]
[310712964,1704651037906,-9372.69779824,0.00022324,2]
[310712965,1704651037970,-13128.49678668,0.00022324,2]
[310712966,1704651037979,-499.99,0.00022324,2]
[310712967,1704651037989,-3516.969,0.00022325,2]
[310712968,1704651037998,-30852.04205261,0.00022325,2]
[310712969,1704651038013,-27.40384739,0.00022325,2]
[310712970,1704651038025,-158.47177902,0.00022334,2]
[310712971,1704651038035,-217.38212706,0.00022349,2]
[310712972,1704651038046,-18965.09955286,0.00022349,2]
[310712973,1704651038055,-764.70765062,0.00022349,2]
[310712974,1704651038064,-219.63427416,0.00022349,2]
[310712975,1704651038073,-252.23869713,0.00022349,2]
[310712976,1704651038082,-1654.6697476,0.00022349,2]
[310712977,1704651038092,-3615.56141849,0.00022349,2]
[310712978,1704651038101,-527.82416345,0.00022349,2]
[310712979,1704651038111,-234.99288238,0.00022349,2]
[310712980,1704651038120,-2336.91508864,0.00022353,2]
[310712981,1704651038129,-152.26,0.00022373,2]
[310712982,1704651038138,-158.47177902,0.00022397,2]
[310712983,1704651038147,-164.57,0.00022405,2]
[310712984,1704651038156,-543.11,0.00022432,2]
[310712985,1704651038165,-152.26,0.00022439,2]
[310712986,1704651038174,-158.47177902,0.0002246,2]
[310712987,1704651038183,-5092.16763667,0.00022464,2]
[310712988,1704651038192,-607.49243332,0.00022465,2]
[310712989,1704651038201,-165.46285681,0.00022465,2]
[310712990,1704651038212,-152.26,0.00022506,2]
[310712991,1704651038221,-438.76069,0.00022522,2]
[310712992,1704651038233,-158.47177902,0.00022523,2]
[310712993,1704651038242,-215.93753757,0.00022525,2]
[310712994,1704651038251,-280.14979655,0.00022539,2]
[310712995,1704651038261,-336.73772468,0.00022548,2]
[310712996,1704651038271,-152.26,0.00022572,2]
[310712997,1704651038280,-158.47177902,0.00022586,2]
[310712998,1704651038293,-152.26,0.00022638,2]
[310712999,1704651038303,-158.47177902,0.00022649,2]
[310713000,1704651038313,-152.26,0.00022705,2]
[310713001,1704651038322,-158.47177902,0.00022711,2]
[310713002,1704651038331,-164.57,0.0002272,2]
[310713003,1704651038340,-363.22558303,0.00022768,2]
[310713004,1704651038350,-22734.05059563,0.0002277,2]
[310713015,1704651038729,-46735.14670057,0.0002277,2]
[310713016,1704651038741,-30859.8027038,0.0002277,2]
[310713017,1704651038751,-152.26,0.00022771,2]
[310713018,1704651038760,-158.47177902,0.00022774,2]
[310713019,1704651038770,-6079.2175,0.0002278,2]
[310713020,1704651038779,-202.04740708,0.000228,2]
[310713021,1704651039013,-868.56363006,0.000228,2]
[310713022,1704651039022,-215.93753757,0.000228,2]
[310713023,1704651039033,-158.47177902,0.00022837,2]
[310713024,1704651039042,-202.04740707,0.0002285,2]
[310713025,1704651039052,-200251.47164135,0.0002288,2]
[310713026,1704651039111,-406.34638363,0.0002288,2]
[310713027,1704651039138,-5000.0,0.0002288,2]
[310713028,1704651039152,-3252.89656189,0.0002288,2]
[310713029,1704651039183,-578736.17630568,0.0002288,2]
[310713030,1704651039193,-153.48275746,0.000229,2]
[310713031,1704651039203,-4076.03703744,0.000229,2]
[310713032,1704651039214,-158.47177902,0.000229,2]
[310713033,1704651039225,-158.54188865,0.000229,2]
[310713034,1704651039234,-549.06806515,0.000229,2]
[310713035,1704651039243,-202.04740707,0.000229,2]
[310713036,1704651039252,-189.95661238,0.000229,2]
[310713037,1704651039261,-835.28275688,0.000229,2]
[310713038,1704651039269,-155.0,0.00022997,2]
[310713039,1704651039279,-4160.55312861,0.00022998,2]
[310713040,1704651039288,-1424.35902177,0.00022998,2]
[310713041,1704651039297,-242.43603172,0.00022998,2]
[310713042,1704651039306,-273.15370351,0.00022998,2]
[310713043,1704651039315,-2035.82516095,0.00022998,2]
[310713044,1704651039324,-337.11641758,0.00022998,2]
[310713045,1704651039346,-522.20683445,0.00022999,2]
[310713046,1704651039369,-368.72979004,0.00022999,2]
[310713047,1704651039378,-150.0,0.00022999,2]
[310713048,1704651039388,-318981.17636208,0.00023,2]
[310713049,1704651039397,-931.61796289,0.00023,2]
[310713050,1704651039406,-1315352.76758944,0.00023,2]
[310713051,1704651039418,-154200.21414285,0.00023,2]
[310713052,1704651039430,-4966.74202768,0.00023,2]
[310713053,1704651039439,-269.56,0.00023,2]
[310713054,1704651039448,-2966.0,0.00023014,2]
[310713055,1704651039457,-290.14,0.00023014,2]
[310713056,1704651039466,-164.57,0.00023036,2]
[310713057,1704651039476,-10556.44752612,0.000231,2]
[310713058,1704651039485,-3428.72764129,0.0002313,2]
[310713059,1704651039493,-164.57,0.00023352,2]
[310713060,1704651039502,-543.11,0.0002341,2]
[310713061,1704651039512,-164.57,0.00023667,2]
[310713062,1704651039521,-164.57,0.00023983,2]
[310713063,1704651039530,-4076.03703739,0.00023991,2]
[310713064,1704651039540,-405.01,0.00024178,2]
[310713065,1704651039549,-520.0,0.00024236,2]
[310713066,1704651039558,-173.69,0.00024282,2]
[310713067,1704651039568,-167.0,0.00024297,2]
[310713068,1704651039577,-164.57,0.00024298,2]
[310713069,1704651039587,-543.11,0.00024389,2]
[310713070,1704651039596,-868.56363001,0.00024529,2]
[310713071,1704651039606,-210.0,0.00024555,2]
[310713072,1704651039615,-600.0,0.00024599,2]
[310713073,1704651039624,-250.0,0.00024658,2]
[310713074,1704651039634,-302.71173098,0.00025,2]
[310713075,1704651039643,-166.9760429,0.00025,2]
[310713076,1704651039654,-908.24499731,0.00025,2]
[310713077,1704651039664,-334.38231791,0.00025,2]
[310713078,1704651039673,-3034.08810881,0.00025,2]
[310713079,1704651039683,-1245.75987952,0.00025,2]
[310713080,1704651039692,-650.0,0.00025,2]
[310713081,1704651039702,-350.0,0.00025,3]
[310713082,1704651039712,-4076.03703739,0.00025082,2]
[310713083,1704651039721,-57911.29980966,0.0002509,2]
[310713090,1704651041585,-459.28488843,0.0002509,2]
[310713091,1704651041596,-283.1727103,0.0002509,2]
[310713092,1704651041616,-2359.9,0.0002509,2]
[310713093,1704651041629,-2728.54022044,0.0002509,2]
[310713094,1704651041638,-167.0,0.00025099,2]
[310713095,1704651041650,-300.0,0.0002515,2]
[310713096,1704651041660,-543.11,0.00025367,2]
[310713097,1704651041670,-173.69,0.00025387,2]
[310713098,1704651041681,-167.0,0.00025901,2]
[310713099,1704651041690,-156.17,0.0002591,2]
[310713100,1704651041699,-150.0,0.00026079,2]
[310713101,1704651041710,-4076.03703739,0.00026173,2]
[310713102,1704651041721,-156.17,0.00026196,2]
[310713103,1704651041732,-193.00559714,0.0002625,2]
[310713104,1704651041741,-290.14,0.00026301,2]
[310713105,1704651041751,-543.11,0.00026345,2]
[310713106,1704651041761,-405.01,0.00026442,2]
[310713107,1704651041771,-156.17,0.00026483,2]
[310713108,1704651041780,-173.69,0.00026492,2]
[310713109,1704651041789,-167.0,0.00026703,2]
[310713110,1704651041798,-156.17,0.0002677,2]
[310713111,1704651041807,-520.0,0.00026929,2]
[310713112,1704651041816,-400.0,0.00027,3]
[310713113,1704651041826,-203.0,0.0002701,2]
[310713114,1704651041835,-156.17,0.00027056,2]
[310713115,1704651041844,-4076.03703739,0.00027264,2]
[310713116,1704651041853,-543.11,0.00027324,2]
[310713117,1704651041862,-600.0,0.00027332,2]
[310713118,1704651041871,-156.17,0.00027343,2]
[310713119,1704651041880,-155.0,0.00027397,2]
[310713120,1704651041890,-4133.01310765,0.00027397,4]
[310713121,1704651041902,-2242.5,0.00027397,4]
[310713122,1704651041913,-369.28039484,0.00027397,4]
[310713123,1704651041925,-8875.20649751,0.00027397,4]
[310713124,1704651041935,-11409.0,0.00027397,4]
[310713125,1704651041943,-250.0,0.00027397,2]
[310713126,1704651041953,-500.0,0.00027397,2]
[310713127,1704651041962,-890.36,0.00027397,2]
[310713128,1704651041971,-250.0,0.000274,2]
[310713129,1704651041980,-672.47944908,0.000275,4]
[310713130,1704651041990,-500.29256766,0.000275,2]
[310713131,1704651041999,-167.0,0.00027505,2]
[310713132,1704651042008,-173.69,0.00027597,2]
[310713133,1704651042017,-156.17,0.0002763,2]
[310713134,1704651042026,-357.56774313,0.00027874,2]
[310713135,1704651042035,-156.17,0.00027917,2]
[310713136,1704651042045,-1843.98,0.00027945,2]
[310713137,1704651042054,-946.7,0.00027945,2]
[310713138,1704651042063,-283.71233706,0.00027979,2]
[310713139,1704651042073,-267.95092976,0.00027979,2]
[310713140,1704651042083,-639.61337639,0.00027979,2]
[310713141,1704651042092,-175.91539228,0.00027979,2]
[310713142,1704651042101,-1062.36979274,0.00027979,2]
[310713143,1704651042111,-222.27096863,0.00027979,7]
[310713144,1704651042120,-202.53914952,0.00028,2]
[310713145,1704651042130,-687.02354933,0.00028,2]
[310713146,1704651042306,-156.17,0.00028203,2]
[310713147,1704651042322,-543.11,0.00028302,2]
[310713148,1704651042331,-167.0,0.00028307,2]
[310713149,1704651042340,-976.81136165,0.00028355,2]
[310713150,1704651042352,-3099.22567574,0.00028355,2]
[310713151,1704651042361,-156.17,0.0002849,2]
[310713152,1704651042369,-173.69,0.00028702,2]
[310713153,1704651042379,-405.01,0.00028706,2]
[310713154,1704651042388,-155.0,0.00028767,2]
[310713155,1704651042397,-156.17,0.00028777,2]
[310713156,1704651042406,-549.06806515,0.000289,2]
[310713157,1704651042415,-835.28275686,0.000289,2]
[310713158,1704651042424,-150.0,0.0002899,3]
[310713159,1704651042433,-4146.47796062,0.00029,2]
[310713160,1704651042538,-83026.56653742,0.00029,2]
[310713161,1704651042547,-450.0,0.00029,3]
[310713162,1704651042556,-1190.88,0.00029047,2]
[310713163,1704651042565,-1190.88,0.00029047,2]
[310713164,1704651042574,-1190.88,0.00029047,2]
[310713165,1704651042583,-1190.88,0.00029047,2]
[310713166,1704651042592,-1190.88,0.00029047,2]
[310713167,1704651042601,-1190.88,0.00029047,2]
[310713168,1704651042611,-1190.88,0.00029047,2]
[310713169,1704651042621,-1190.88,0.00029047,2]
[310713170,1704651042631,-1190.88,0.00029047,2]
[310713171,1704651042640,-1000.0,0.00029048,2]
[310713172,1704651042650,-100000.0,0.00029048,2]
[310713173,1704651042659,-881.7444,0.00029048,2]
[310713174,1704651042668,-156.17,0.00029063,2]
[310713175,1704651042677,-543.11,0.00029281,2]
[310713176,1704651042686,-156.17,0.0002935,2]
[310713177,1704651042695,-4076.03703739,0.00029445,2]
[310713178,1704651042706,-27688.29828036,0.000295,2]
[310713179,1704651042718,-303.84007919,0.000295,2]
[310713180,1704651042750,-8111.94712182,0.000295,2]
[310713181,1704651042761,-379.9422459,0.000295,2]
[310713182,1704651042773,-660.87471969,0.000295,2]
[310713183,1704651042789,-1517.80621206,0.000295,2]
[310713184,1704651043264,-1750.65259078,0.00024235,2]
[310713185,1704651043320,-719.59940974,0.00024235,2]
[310713186,1704651043330,-868.56363001,0.00026257,3]
[310713187,1704651043340,-3175.4313632,0.000295,2]
[310713188,1704651043353,-1137.0,0.000295,2]
[310713189,1704651043365,-194681.19195426,0.000295,2]
[310713190,1704651043375,-943.0,0.00029546,2]
[310713191,1704651043386,-1234.0,0.00029546,2]
[310713192,1704651043395,-318.0,0.00029546,2]
[310713193,1704651043405,-460.722,0.00029546,2]
[310713194,1704651043416,-795.878,0.00029546,2]
[310713195,1704651043427,-10330.87,0.00029548,2]
[310713196,1704651043437,-2897.0,0.00029548,2]
[310713197,1704651043446,-2266.0,0.00029548,2]
[310713198,1704651043455,-1027.0,0.00029548,2]
[310713199,1704651043463,-290.14,0.00029589,2]
[310713200,1704651043472,-520.0,0.00029621,2]
[310713201,1704651043482,-156.17,0.00029637,2]
[310713202,1704651043491,-1003.4591,0.00029699,2]
[310713203,1704651043500,-150.0,0.00029799,2]
[310713204,1704651043509,-447277.2876942,0.000298,2]
[310713205,1704651043586,-0.80563743,0.000298,2]
[310713206,1704651043597,-803.05557728,0.000298,2]
[310713207,1704651043655,-259.30000627,0.000298,2]
[310713210,1704651043667,-5776.432574,0.000298,2]
[310713214,1704651043703,-238355.15946642,0.000298,2]
[310713215,1704651043712,-814.98537511,0.000299,2]
[310713217,1704651043722,-156.17,0.00029924,2]
[310713218,1704651043732,-800.0,0.00029973,2]
[310713219,1704651043741,-2146.37421628,0.0002998,7]
[310713220,1704651043751,-1190.89,0.00029999,2]
[310713221,1704651043761,-199.9631004,0.0003,4]
[310713222,1704651043770,-2500.0,0.0003,2]
[310713223,1704651043779,-274.32366881,0.0003,4]
[310713224,1704651043788,-155.0,0.0003,2]
[310713225,1704651043796,-461.2087241,0.0003,4]
[310713226,1704651043806,-72725.73724855,0.0003,4]
[310713227,1704651043815,-1802.90872975,0.0003,4]
[310713228,1704651043824,-308057.51614315,0.0003,4]
[310713229,1704651043833,-2732.34274577,0.0003,2]
[310713230,1704651043842,-811.96653213,0.0003,4]
[310713231,1704651043851,-519.71243716,0.0003,4]
[310713232,1704651043860,-12262.29609774,0.0003,2]
[310713233,1704651043869,-445.03249275,0.0003,4]
[310713234,1704651043878,-8815.57719988,0.0003,4]
[310713235,1704651043887,-198.18621646,0.0003,4]
[310713236,1704651043896,-308.41532778,0.0003,7]
[310713237,1704651043906,-1216.6668566,0.0003,2]
[310713238,1704651043915,-16112.0,0.0003,3]
[310713239,1704651043924,-251.86806399,0.0003,3]
[310713240,1704651043933,-157.39,0.0003,2]
[310713241,1704651043942,-2533.0,0.0003,7]
[310713242,1704651043951,-1000.0,0.0003,2]
[310713243,1704651043960,-360.16,0.00030017,2]
[310713244,1704651043968,-600.0,0.00030065,2]
[310713245,1704651043977,-692.65508001,0.000301,2]
[310713246,1704651043987,-153.84,0.00030137,2]
[310713247,1704651043996,-10000.0,0.00030137,2]
[310713248,1704651044005,-155.0,0.00030137,2]
[310713249,1704651044015,-208.0,0.000302,2]
[310713250,1704651044024,-156.17,0.0003021,2]
[310713251,1704651044034,-543.11,0.00030259,2]
[310713252,1704651044043,-150.0,0.000304,2]
[310713253,1704651044053,-3000.0,0.000304,2]
[310713254,1704651044063,-500.0,0.000304,2]
[310713255,1704651044072,-156.17,0.00030497,2]
[310713256,1704651044082,-4076.03703739,0.00030536,2]
[310713257,1704651044093,-156.17,0.00030784,2]
[310713258,1704651044102,-405.01,0.0003097,2]
[310713259,1704651044111,-7085.18370799,0.00031,7]
[310713260,1704651044120,-500.0,0.00031,3]
[310713261,1704651044131,-2000.0,0.00031,2]
[310713262,1704651044140,-153.84,0.0003105,2]
[310713263,1704651044149,-418.0,0.00031154,5]
[310713264,1704651044160,-150.0,0.00031199,2]
[310713265,1704651044172,-263303.67705587,0.000312,2]
[310713283,1704651046963,-1374.76356697,0.000312,2]
[310713284,1704651046975,-308.25,0.000312,2]
[310713285,1704651046987,-269.38241397,0.000312,2]
[310713286,1704651046999,-440.82,0.000312,2]
[310713287,1704651047010,-403.04925484,0.000312,2]
[310713288,1704651047166,-984.59285584,0.000312,2]
[310713289,1704651051227,300.23412824,0.00021463,2]
[310713290,1704651118764,-417.15999527,0.00022246,2]
[310713291,1704651118792,-19582.84000473,0.00022247,2]
[310713294,1704651319140,-500.35392576,0.00022017,2]
[310713295,1704651319161,-553.13201144,0.00022017,2]
[310713296,1704651319181,-173.70569023,0.00022018,2]
[310713297,1704651319201,-313.59227264,0.00022018,2]
[310713298,1704651319221,-270.2166863,0.00022019,2]
[310713299,1704651319240,-323.4839241,0.00022019,2]
[310713300,1704651319259,-150.0,0.0002202,2]
[310713301,1704651319279,-10533.37563469,0.0002202,2]
[310713302,1704651319298,-18972.87472611,0.00022021,2]
[310713303,1704651319318,-394.23069969,0.00022023,2]
[310713304,1704651319344,-9691.81785472,0.00022023,2]
[310713305,1704651345441,-158.4198768,0.00022021,2]
[310713306,1704651345461,-463.0,0.00022022,2]
[310713307,1704651345481,-173.70569023,0.00022022,2]
[310713308,1704651345502,-15204.87443297,0.00022023,2]
[310713309,1704651361910,-263.0,0.00022023,2]
[310713317,1704651488794,150.0,0.000192,2]
[310713318,1704651488815,150.0,0.000192,2]
[310713319,1704651488835,150.0,0.000192,2]
[310713320,1704651488857,150.0,0.000192,2]
[310713321,1704651488877,150.0,0.000192,2]
[310713322,1704651488910,150.0,0.000192,2]
[310713323,1704651488937,100.0,0.000192,2]
[310713324,1704651503102,280.54971993,0.00021925,2]
[310713327,1704651520578,-553.13201144,0.00022022,2]
[310713328,1704651520599,-46.86798856,0.00022022,2]
[310713329,1704651522972,150.0,0.00021925,2]
[310713330,1704651522993,20.55472325,0.00021925,2]
[310713331,1704651537120,150.0,0.00021925,2]
[310713332,1704651537144,150.0,0.00021925,2]
[310713333,1704651537164,150.0,0.00021925,2]
[310713334,1704651537184,150.0,0.00021925,2]
[310713335,1704651537205,8.63905508,0.00021925,2]
[310713336,1704651553127,608.63905508,0.00021925,2]
[310713337,1704651554454,294.8487855,0.00021925,2]
[310713338,1704651571126,150.0,0.00021925,2]
[310713339,1704651571150,150.0,0.00021925,2]